{"text_format":"1","workbook":"xlsx","n_sheets":2,"sheets":["Blad2","Blad3"],"not_rendered":{"charts":0,"images":0,"macros":1,"external_links":0,"defined_names":6,"comments":0,"pivot_tables":0},"unopened":[],"bounds":{"document_bytes":16777216,"sheet_cells":100000,"rows_first":2000,"rows_last":500,"rows_between":2000,"halvings":0,"cell_chars":16384,"cell_head_chars":4096},"cells_cut":0,"cells_raw":0,"read":"whole","date_system":"1900"}

{"sheet":"Blad2","index":0,"n_rows":765,"n_cols":18,"rows_kept":765,"cut":false,"hidden":false,"merged":[[36,1,36,16],[37,2,37,16],[34,1,34,15],[0,7,0,11],[4,1,4,16],[35,1,35,16],[2,8,2,10]]}
[{"$f":"DATE(jaar,1,1)","v":"2016-01-01"},null,"Dit overzicht houd zelf de voorraad bij, door elke dag",null,null,null,null,{"$f":"TODAY()","v":"2016-03-10"},null,null,null,null,null,"Kleur legende:",null,"068168883",null,{"$f":"IF(A1=TODAY(),MOD(ROW(),2),\"\")","v":""}]
[{"$f":"A1+1","v":"2016-01-02"},null,"het gebruik per dag van het totaal af te trekken.",null,null,null,null,null,null,null,null,null,null,"Oranje is voor minder dan 10 dagen voorraad.",null,null,null,""]
[{"$f":"A2+1","v":"2016-01-03"},null," hier op klikken is daarom wel regelmatig gewenst.",null,null,null,null,null,{"$f":"IF(COUNT(tal)>0,\"Let op bestellen !!\",\"\")","v":""},null,null,null,null,"Rood is voor minder dan 5 dagen voorraad.",null,null,null,""]
["2016-01-04",null,null,null,null,null,null,null,null,null,null,null,null,null,null,null,null,""]
["2016-01-05","Overzicht Medicijnen Voorraad",null,null,null,null,null,null,null,null,null,null,null,null,null,null,null,""]
["2016-01-06",null,null,"start/stop","huidig","naam","datum","gebruiks","ontvangen","gebruik","gebruik","rest","dagen","Datum",null,{"$f":"YEAR(NOW())","v":2016},"besteld",""]
["2016-01-07","nr.","Omschrijving medicijnen","medicatie","Receptnummer","Arts","aangevuld","eenheid","eenheden","per  dag","m / a","voorraad","voorraad","Einddatum",null,"Status","x",""]
["2016-01-08",{"$f":"IF(C8=\"\",\"\",IF(ROW()=1,1,MAX(INDIRECT(\"B\"&ROW()-1&\":B1\",TRUE))+1))","v":1},"Fenprocoumon 3MG","2016-01-22",null,null,"2016-03-03","stuks",20,0.5,"s'avonds",{"$f":"IF(COUNT(I8,G8)=2,I8-(TODAY()-G8)*J8,\"\")","v":16.5},{"$f":"IFERROR(ROUNDDOWN(L8/J8,0),\"\")","v":33},{"$f":"IF(COUNT(G8,I8,J8)=3,G8+(I8/J8),\"\")","v":"2016-04-12"},{"$f":"IF(Q8=\"x\",\"\",IF(M8<=10,B8,\"\"))","v":""},{"$f":"IF(AND(D8>0,G8=\"\"),\"Gestopt\",IF(Q8=\"x\",\"Besteld\",IF(COUNT(G8,I8,J8)=3,IF(M8<=5,\"Nu bestellen\",IF(M8<=10,\"Nog \"&N8-TODAY()-5&\" dagen\",\"OK\")),\"\")))","v":"OK"},null,""]
["2016-01-09",2,"Modalim 100 mg  (op de dag als deze cel groen is)",null,null,null,"2016-03-03","stuks",29,0.5,"s'avonds",25.5,51,"2016-04-30","","OK",null,""]
["2016-01-10",3,"Nebivolol 5MG ",null,null,null,"2016-03-03","stuks",30,1,"s'morgens",23,23,"2016-04-02","","OK",null,""]
["2016-01-11",4,"Symbicort 400/12","2016-01-19",null,null,"2016-01-20","eenheden",180,2,"2 maal",80,40,"2016-04-19","","OK",null,""]
["2016-01-12","",null,null,null,null,null,null,null,null,null,"","","","","",null,""]
["2016-01-13","",null,null,null,null,null,null,null,null,null,"","","","","",null,""]
["2016-01-14","",null,null,null,null,null,null,null,null,null,"","","","","",null,""]
["2016-01-15","",null,null,null,null,null,null,null,null,null,"","","","","",null,""]
["2016-01-16","",null,null,null,null,null,null,null,null,null,"","","","","",null,""]
["2016-01-17","",null,null,null,null,null,null,null,null,null,"","","","","",null,""]
["2016-01-18","",null,null,null,null,null,null,null,null,null,"","","","","",null,""]
["2016-01-19","",null,null,null,null,null,null,null,null,null,"","","","","",null,""]
["2016-01-20","",null,null,null,null,null,null,null,null,null,"","","","","",null,""]
["2016-01-21","",null,null,null,null,null,null,null,null,null,"","","","","",null,""]
["2016-01-22","",null,null,null,null,null,null,null,null,null,"","","","","",null,""]
["2016-01-23","",null,null,null,null,null,null,null,null,null,"","","","","",null,""]
["2016-01-24","",null,null,null,null,null,null,null,null,null,"","","","","",null,""]
["2016-01-25","",null,null,null,null,null,null,null,null,null,"","","","","",null,""]
["2016-01-26","",null,null,null,null,null,null,null,null,null,"","","","","",null,""]
["2016-01-27","",null,null,null,null,null,null,null,null,null,"","","","","",null,""]
["2016-01-28","",null,null,null,null,null,null,null,null,null,"","","","","",null,""]
["2016-01-29","",null,null,null,null,null,null,null,null,null,"","","","","",null,""]
["2016-01-30","",null,null,null,null,null,null,null,null,null,"","","","","",null,""]
["2016-01-31","",null,null,null,null,null,null,null,null,null,"","","","","",null,""]
["2016-02-01","",null,null,null,null,null,null,null,null,null,"","","","","",null,""]
["2016-02-02","",null,null,null,null,null,null,null,null,null,"","","","","",null,""]
["2016-02-03","",null,null,null,null,null,null,null,null,null,"","","","","",null,""]
["2016-02-04","Gebruik de Tab toets of de cursor bestuur toetsen",null,null,null,null,null,null,null,null,null,null,null,null,null,null,null,""]
["2016-02-05","In de kolom \"nog in voorraad\" zijn de medicijnen van vandaag al afgetrokken, houd hier rekening mee als je twijfelt of je ze wel hebt ingenomen!",null,null,null,null,null,null,null,null,null,null,null,null,null,null,null,""]
["2016-02-06","Als je tijdelijk stopt met de medicatie, verwijder dan alléén \"datum aangevuld\" In de status verschijnt nu \"tijdelijke stop\" begin je weer, zet dan de start datum in \"datum aangevuld\"",null,null,null,null,null,null,null,null,null,null,null,null,null,null,null,""]
["2016-02-07",null,"Dit werkblad is beveiligd zonder wachtwoord",null,null,null,null,null,null,null,null,null,null,null,null,null,null,""]
["2016-02-08",null,null,null,null,null,null,null,null,null,null,null,null,null,null,null,null,""]
["2016-02-09",null,null,null,null,null,null,null,null,null,null,null,null,null,null,null,null,""]
["2016-02-10",null,null,null,null,null,null,null,null,null,null,null,null,null,null,null,null,""]
["2016-02-11",null,null,null,null,null,null,null,null,null,null,null,null,null,null,null,null,""]
["2016-02-12",null,null,null,null,null,null,null,null,null,null,null,null,null,null,null,null,""]
["2016-02-13",null,null,null,null,null,null,null,null,null,null,null,null,null,null,null,null,""]
["2016-02-14",null,null,null,null,null,null,null,null,null,null,null,null,null,null,null,null,""]
["2016-02-15",null,null,null,null,null,null,null,null,null,null,null,null,null,null,null,null,""]
["2016-02-16",null,null,null,null,null,null,null,null,null,null,null,null,null,null,null,null,""]
["2016-02-17",null,null,null,null,null,null,null,null,null,null,null,null,null,null,null,null,""]
["2016-02-18",null,null,null,null,null,null,null,null,null,null,null,null,null,null,null,null,""]
["2016-02-19",null,null,null,null,null,null,null,null,null,null,null,null,null,null,null,null,""]
["2016-02-20",null,null,null,null,null,null,null,null,null,null,null,null,null,null,null,null,""]
["2016-02-21",null,null,null,null,null,null,null,null,null,null,null,null,null,null,null,null,""]
["2016-02-22",null,null,null,null,null,null,null,null,null,null,null,null,null,null,null,null,""]
["2016-02-23",null,null,null,null,null,null,null,null,null,null,null,null,null,null,null,null,""]
["2016-02-24",null,null,null,null,null,null,null,null,null,null,null,null,null,null,null,null,""]
["2016-02-25",null,null,null,null,null,null,null,null,null,null,null,null,null,null,null,null,""]
["2016-02-26",null,null,null,null,null,null,null,null,null,null,null,null,null,null,null,null,""]
["2016-02-27",null,null,null,null,null,null,null,null,null,null,null,null,null,null,null,null,""]
["2016-02-28",null,null,null,null,null,null,null,null,null,null,null,null,null,null,null,null,""]
["2016-02-29",null,null,null,null,null,null,null,null,null,null,null,null,null,null,null,null,""]
["2016-03-01",null,null,null,null,null,null,null,null,null,null,null,null,null,null,null,null,""]
["2016-03-02",null,null,null,null,null,null,null,null,null,null,null,null,null,null,null,null,""]
["2016-03-03",null,null,null,null,null,null,null,null,null,null,null,null,null,null,null,null,""]
["2016-03-04",null,null,null,null,null,null,null,null,null,null,null,null,null,null,null,null,""]
["2016-03-05",null,null,null,null,null,null,null,null,null,null,null,null,null,null,null,null,{"$f":"IF(A65=TODAY(),MOD(ROW(),2),\"\")","v":""}]
["2016-03-06",null,null,null,null,null,null,null,null,null,null,null,null,null,null,null,null,""]
[{"$f":"A66+1","v":"2016-03-07"},null,null,null,null,null,null,null,null,null,null,null,null,null,null,null,null,""]
["2016-03-08",null,null,null,null,null,null,null,null,null,null,null,null,null,null,null,null,""]
["2016-03-09",null,null,null,null,null,null,null,null,null,null,null,null,null,null,null,null,""]
["2016-03-10",null,null,null,null,null,null,null,null,null,null,null,null,null,null,null,null,0]
["2016-03-11",null,null,null,null,null,null,null,null,null,null,null,null,null,null,null,null,""]
["2016-03-12",null,null,null,null,null,null,null,null,null,null,null,null,null,null,null,null,""]
["2016-03-13",null,null,null,null,null,null,null,null,null,null,null,null,null,null,null,null,""]
["2016-03-14",null,null,null,null,null,null,null,null,null,null,null,null,null,null,null,null,""]
["2016-03-15",null,null,null,null,null,null,null,null,null,null,null,null,null,null,null,null,""]
["2016-03-16",null,null,null,null,null,null,null,null,null,null,null,null,null,null,null,null,""]
["2016-03-17",null,null,null,null,null,null,null,null,null,null,null,null,null,null,null,null,""]
["2016-03-18",null,null,null,null,null,null,null,null,null,null,null,null,null,null,null,null,""]
["2016-03-19",null,null,null,null,null,null,null,null,null,null,null,null,null,null,null,null,""]
["2016-03-20",null,null,null,null,null,null,null,null,null,null,null,null,null,null,null,null,""]
["2016-03-21",null,null,null,null,null,null,null,null,null,null,null,null,null,null,null,null,""]
["2016-03-22",null,null,null,null,null,null,null,null,null,null,null,null,null,null,null,null,""]
["2016-03-23",null,null,null,null,null,null,null,null,null,null,null,null,null,null,null,null,""]
["2016-03-24",null,null,null,null,null,null,null,null,null,null,null,null,null,null,null,null,""]
["2016-03-25",null,null,null,null,null,null,null,null,null,null,null,null,null,null,null,null,""]
["2016-03-26",null,null,null,null,null,null,null,null,null,null,null,null,null,null,null,null,""]
["2016-03-27",null,null,null,null,null,null,null,null,null,null,null,null,null,null,null,null,""]
["2016-03-28",null,null,null,null,null,null,null,null,null,null,null,null,null,null,null,null,""]
["2016-03-29",null,null,null,null,null,null,null,null,null,null,null,null,null,null,null,null,""]
["2016-03-30",null,null,null,null,null,null,null,null,null,null,null,null,null,null,null,null,""]
["2016-03-31",null,null,null,null,null,null,null,null,null,null,null,null,null,null,null,null,""]
["2016-04-01",null,null,null,null,null,null,null,null,null,null,null,null,null,null,null,null,""]
["2016-04-02",null,null,null,null,null,null,null,null,null,null,null,null,null,null,null,null,""]
["2016-04-03",null,null,null,null,null,null,null,null,null,null,null,null,null,null,null,null,""]
["2016-04-04",null,null,null,null,null,null,null,null,null,null,null,null,null,null,null,null,""]
["2016-04-05",null,null,null,null,null,null,null,null,null,null,null,null,null,null,null,null,""]
["2016-04-06",null,null,null,null,null,null,null,null,null,null,null,null,null,null,null,null,""]
["2016-04-07",null,null,null,null,null,null,null,null,null,null,null,null,null,null,null,null,""]
["2016-04-08",null,null,null,null,null,null,null,null,null,null,null,null,null,null,null,null,""]
["2016-04-09",null,null,null,null,null,null,null,null,null,null,null,null,null,null,null,null,""]
["2016-04-10",null,null,null,null,null,null,null,null,null,null,null,null,null,null,null,null,""]
["2016-04-11",null,null,null,null,null,null,null,null,null,null,null,null,null,null,null,null,""]
["2016-04-12",null,null,null,null,null,null,null,null,null,null,null,null,null,null,null,null,""]
["2016-04-13",null,null,null,null,null,null,null,null,null,null,null,null,null,null,null,null,""]
["2016-04-14",null,null,null,null,null,null,null,null,null,null,null,null,null,null,null,null,""]
["2016-04-15",null,null,null,null,null,null,null,null,null,null,null,null,null,null,null,null,""]
["2016-04-16",null,null,null,null,null,null,null,null,null,null,null,null,null,null,null,null,""]
["2016-04-17",null,null,null,null,null,null,null,null,null,null,null,null,null,null,null,null,""]
["2016-04-18",null,null,null,null,null,null,null,null,null,null,null,null,null,null,null,null,""]
["2016-04-19",null,null,null,null,null,null,null,null,null,null,null,null,null,null,null,null,""]
["2016-04-20",null,null,null,null,null,null,null,null,null,null,null,null,null,null,null,null,""]
["2016-04-21",null,null,null,null,null,null,null,null,null,null,null,null,null,null,null,null,""]
["2016-04-22",null,null,null,null,null,null,null,null,null,null,null,null,null,null,null,null,""]
["2016-04-23",null,null,null,null,null,null,null,null,null,null,null,null,null,null,null,null,""]
["2016-04-24",null,null,null,null,null,null,null,null,null,null,null,null,null,null,null,null,""]
["2016-04-25",null,null,null,null,null,null,null,null,null,null,null,null,null,null,null,null,""]
["2016-04-26",null,null,null,null,null,null,null,null,null,null,null,null,null,null,null,null,""]
["2016-04-27",null,null,null,null,null,null,null,null,null,null,null,null,null,null,null,null,""]
["2016-04-28",null,null,null,null,null,null,null,null,null,null,null,null,null,null,null,null,""]
["2016-04-29",null,null,null,null,null,null,null,null,null,null,null,null,null,null,null,null,""]
["2016-04-30",null,null,null,null,null,null,null,null,null,null,null,null,null,null,null,null,""]
["2016-05-01",null,null,null,null,null,null,null,null,null,null,null,null,null,null,null,null,""]
["2016-05-02",null,null,null,null,null,null,null,null,null,null,null,null,null,null,null,null,""]
["2016-05-03",null,null,null,null,null,null,null,null,null,null,null,null,null,null,null,null,""]
["2016-05-04",null,null,null,null,null,null,null,null,null,null,null,null,null,null,null,null,""]
["2016-05-05",null,null,null,null,null,null,null,null,null,null,null,null,null,null,null,null,""]
["2016-05-06",null,null,null,null,null,null,null,null,null,null,null,null,null,null,null,null,""]
["2016-05-07",null,null,null,null,null,null,null,null,null,null,null,null,null,null,null,null,""]
["2016-05-08",null,null,null,null,null,null,null,null,null,null,null,null,null,null,null,null,{"$f":"IF(A129=TODAY(),MOD(ROW(),2),\"\")","v":""}]
["2016-05-09",null,null,null,null,null,null,null,null,null,null,null,null,null,null,null,null,""]
[{"$f":"A130+1","v":"2016-05-10"},null,null,null,null,null,null,null,null,null,null,null,null,null,null,null,null,""]
["2016-05-11",null,null,null,null,null,null,null,null,null,null,null,null,null,null,null,null,""]
["2016-05-12",null,null,null,null,null,null,null,null,null,null,null,null,null,null,null,null,""]
["2016-05-13",null,null,null,null,null,null,null,null,null,null,null,null,null,null,null,null,""]
["2016-05-14",null,null,null,null,null,null,null,null,null,null,null,null,null,null,null,null,""]
["2016-05-15",null,null,null,null,null,null,null,null,null,null,null,null,null,null,null,null,""]
["2016-05-16",null,null,null,null,null,null,null,null,null,null,null,null,null,null,null,null,""]
["2016-05-17",null,null,null,null,null,null,null,null,null,null,null,null,null,null,null,null,""]
["2016-05-18",null,null,null,null,null,null,null,null,null,null,null,null,null,null,null,null,""]
["2016-05-19",null,null,null,null,null,null,null,null,null,null,null,null,null,null,null,null,""]
["2016-05-20",null,null,null,null,null,null,null,null,null,null,null,null,null,null,null,null,""]
["2016-05-21",null,null,null,null,null,null,null,null,null,null,null,null,null,null,null,null,""]
["2016-05-22",null,null,null,null,null,null,null,null,null,null,null,null,null,null,null,null,""]
["2016-05-23",null,null,null,null,null,null,null,null,null,null,null,null,null,null,null,null,""]
["2016-05-24",null,null,null,null,null,null,null,null,null,null,null,null,null,null,null,null,""]
["2016-05-25",null,null,null,null,null,null,null,null,null,null,null,null,null,null,null,null,""]
["2016-05-26",null,null,null,null,null,null,null,null,null,null,null,null,null,null,null,null,""]
["2016-05-27",null,null,null,null,null,null,null,null,null,null,null,null,null,null,null,null,""]
["2016-05-28",null,null,null,null,null,null,null,null,null,null,null,null,null,null,null,null,""]
["2016-05-29",null,null,null,null,null,null,null,null,null,null,null,null,null,null,null,null,""]
["2016-05-30",null,null,null,null,null,null,null,null,null,null,null,null,null,null,null,null,""]
["2016-05-31",null,null,null,null,null,null,null,null,null,null,null,null,null,null,null,null,""]
["2016-06-01",null,null,null,null,null,null,null,null,null,null,null,null,null,null,null,null,""]
["2016-06-02",null,null,null,null,null,null,null,null,null,null,null,null,null,null,null,null,""]
["2016-06-03",null,null,null,null,null,null,null,null,null,null,null,null,null,null,null,null,""]
["2016-06-04",null,null,null,null,null,null,null,null,null,null,null,null,null,null,null,null,""]
["2016-06-05",null,null,null,null,null,null,null,null,null,null,null,null,null,null,null,null,""]
["2016-06-06",null,null,null,null,null,null,null,null,null,null,null,null,null,null,null,null,""]
["2016-06-07",null,null,null,null,null,null,null,null,null,null,null,null,null,null,null,null,""]
["2016-06-08",null,null,null,null,null,null,null,null,null,null,null,null,null,null,null,null,""]
["2016-06-09",null,null,null,null,null,null,null,null,null,null,null,null,null,null,null,null,""]
["2016-06-10",null,null,null,null,null,null,null,null,null,null,null,null,null,null,null,null,""]
["2016-06-11",null,null,null,null,null,null,null,null,null,null,null,null,null,null,null,null,""]
["2016-06-12",null,null,null,null,null,null,null,null,null,null,null,null,null,null,null,null,""]
["2016-06-13",null,null,null,null,null,null,null,null,null,null,null,null,null,null,null,null,""]
["2016-06-14",null,null,null,null,null,null,null,null,null,null,null,null,null,null,null,null,""]
["2016-06-15",null,null,null,null,null,null,null,null,null,null,null,null,null,null,null,null,""]
["2016-06-16",null,null,null,null,null,null,null,null,null,null,null,null,null,null,null,null,""]
["2016-06-17",null,null,null,null,null,null,null,null,null,null,null,null,null,null,null,null,""]
["2016-06-18",null,null,null,null,null,null,null,null,null,null,null,null,null,null,null,null,""]
["2016-06-19",null,null,null,null,null,null,null,null,null,null,null,null,null,null,null,null,""]
["2016-06-20",null,null,null,null,null,null,null,null,null,null,null,null,null,null,null,null,""]
["2016-06-21",null,null,null,null,null,null,null,null,null,null,null,null,null,null,null,null,""]
["2016-06-22",null,null,null,null,null,null,null,null,null,null,null,null,null,null,null,null,""]
["2016-06-23",null,null,null,null,null,null,null,null,null,null,null,null,null,null,null,null,""]
["2016-06-24",null,null,null,null,null,null,null,null,null,null,null,null,null,null,null,null,""]
["2016-06-25",null,null,null,null,null,null,null,null,null,null,null,null,null,null,null,null,""]
["2016-06-26",null,null,null,null,null,null,null,null,null,null,null,null,null,null,null,null,""]
["2016-06-27",null,null,null,null,null,null,null,null,null,null,null,null,null,null,null,null,""]
["2016-06-28",null,null,null,null,null,null,null,null,null,null,null,null,null,null,null,null,""]
["2016-06-29",null,null,null,null,null,null,null,null,null,null,null,null,null,null,null,null,""]
["2016-06-30",null,null,null,null,null,null,null,null,null,null,null,null,null,null,null,null,""]
["2016-07-01",null,null,null,null,null,null,null,null,null,null,null,null,null,null,null,null,""]
["2016-07-02",null,null,null,null,null,null,null,null,null,null,null,null,null,null,null,null,""]
["2016-07-03",null,null,null,null,null,null,null,null,null,null,null,null,null,null,null,null,""]
["2016-07-04",null,null,null,null,null,null,null,null,null,null,null,null,null,null,null,null,""]
["2016-07-05",null,null,null,null,null,null,null,null,null,null,null,null,null,null,null,null,""]
["2016-07-06",null,null,null,null,null,null,null,null,null,null,null,null,null,null,null,null,""]
["2016-07-07",null,null,null,null,null,null,null,null,null,null,null,null,null,null,null,null,""]
["2016-07-08",null,null,null,null,null,null,null,null,null,null,null,null,null,null,null,null,""]
["2016-07-09",null,null,null,null,null,null,null,null,null,null,null,null,null,null,null,null,""]
["2016-07-10",null,null,null,null,null,null,null,null,null,null,null,null,null,null,null,null,""]
["2016-07-11",null,null,null,null,null,null,null,null,null,null,null,null,null,null,null,null,{"$f":"IF(A193=TODAY(),MOD(ROW(),2),\"\")","v":""}]
["2016-07-12",null,null,null,null,null,null,null,null,null,null,null,null,null,null,null,null,""]
[{"$f":"A194+1","v":"2016-07-13"},null,null,null,null,null,null,null,null,null,null,null,null,null,null,null,null,""]
["2016-07-14",null,null,null,null,null,null,null,null,null,null,null,null,null,null,null,null,""]
["2016-07-15",null,null,null,null,null,null,null,null,null,null,null,null,null,null,null,null,""]
["2016-07-16",null,null,null,null,null,null,null,null,null,null,null,null,null,null,null,null,""]
["2016-07-17",null,null,null,null,null,null,null,null,null,null,null,null,null,null,null,null,""]
["2016-07-18",null,null,null,null,null,null,null,null,null,null,null,null,null,null,null,null,""]
["2016-07-19",null,null,null,null,null,null,null,null,null,null,null,null,null,null,null,null,""]
["2016-07-20",null,null,null,null,null,null,null,null,null,null,null,null,null,null,null,null,""]
["2016-07-21",null,null,null,null,null,null,null,null,null,null,null,null,null,null,null,null,""]
["2016-07-22",null,null,null,null,null,null,null,null,null,null,null,null,null,null,null,null,""]
["2016-07-23",null,null,null,null,null,null,null,null,null,null,null,null,null,null,null,null,""]
["2016-07-24",null,null,null,null,null,null,null,null,null,null,null,null,null,null,null,null,""]
["2016-07-25",null,null,null,null,null,null,null,null,null,null,null,null,null,null,null,null,""]
["2016-07-26",null,null,null,null,null,null,null,null,null,null,null,null,null,null,null,null,""]
["2016-07-27",null,null,null,null,null,null,null,null,null,null,null,null,null,null,null,null,""]
["2016-07-28",null,null,null,null,null,null,null,null,null,null,null,null,null,null,null,null,""]
["2016-07-29",null,null,null,null,null,null,null,null,null,null,null,null,null,null,null,null,""]
["2016-07-30",null,null,null,null,null,null,null,null,null,null,null,null,null,null,null,null,""]
["2016-07-31",null,null,null,null,null,null,null,null,null,null,null,null,null,null,null,null,""]
["2016-08-01",null,null,null,null,null,null,null,null,null,null,null,null,null,null,null,null,""]
["2016-08-02",null,null,null,null,null,null,null,null,null,null,null,null,null,null,null,null,""]
["2016-08-03",null,null,null,null,null,null,null,null,null,null,null,null,null,null,null,null,""]
["2016-08-04",null,null,null,null,null,null,null,null,null,null,null,null,null,null,null,null,""]
["2016-08-05",null,null,null,null,null,null,null,null,null,null,null,null,null,null,null,null,""]
["2016-08-06",null,null,null,null,null,null,null,null,null,null,null,null,null,null,null,null,""]
["2016-08-07",null,null,null,null,null,null,null,null,null,null,null,null,null,null,null,null,""]
["2016-08-08",null,null,null,null,null,null,null,null,null,null,null,null,null,null,null,null,""]
["2016-08-09",null,null,null,null,null,null,null,null,null,null,null,null,null,null,null,null,""]
["2016-08-10",null,null,null,null,null,null,null,null,null,null,null,null,null,null,null,null,""]
["2016-08-11",null,null,null,null,null,null,null,null,null,null,null,null,null,null,null,null,""]
["2016-08-12",null,null,null,null,null,null,null,null,null,null,null,null,null,null,null,null,""]
["2016-08-13",null,null,null,null,null,null,null,null,null,null,null,null,null,null,null,null,""]
["2016-08-14",null,null,null,null,null,null,null,null,null,null,null,null,null,null,null,null,""]
["2016-08-15",null,null,null,null,null,null,null,null,null,null,null,null,null,null,null,null,""]
["2016-08-16",null,null,null,null,null,null,null,null,null,null,null,null,null,null,null,null,""]
["2016-08-17",null,null,null,null,null,null,null,null,null,null,null,null,null,null,null,null,""]
["2016-08-18",null,null,null,null,null,null,null,null,null,null,null,null,null,null,null,null,""]
["2016-08-19",null,null,null,null,null,null,null,null,null,null,null,null,null,null,null,null,""]
["2016-08-20",null,null,null,null,null,null,null,null,null,null,null,null,null,null,null,null,""]
["2016-08-21",null,null,null,null,null,null,null,null,null,null,null,null,null,null,null,null,""]
["2016-08-22",null,null,null,null,null,null,null,null,null,null,null,null,null,null,null,null,""]
["2016-08-23",null,null,null,null,null,null,null,null,null,null,null,null,null,null,null,null,""]
["2016-08-24",null,null,null,null,null,null,null,null,null,null,null,null,null,null,null,null,""]
["2016-08-25",null,null,null,null,null,null,null,null,null,null,null,null,null,null,null,null,""]
["2016-08-26",null,null,null,null,null,null,null,null,null,null,null,null,null,null,null,null,""]
["2016-08-27",null,null,null,null,null,null,null,null,null,null,null,null,null,null,null,null,""]
["2016-08-28",null,null,null,null,null,null,null,null,null,null,null,null,null,null,null,null,""]
["2016-08-29",null,null,null,null,null,null,null,null,null,null,null,null,null,null,null,null,""]
["2016-08-30",null,null,null,null,null,null,null,null,null,null,null,null,null,null,null,null,""]
["2016-08-31",null,null,null,null,null,null,null,null,null,null,null,null,null,null,null,null,""]
["2016-09-01",null,null,null,null,null,null,null,null,null,null,null,null,null,null,null,null,""]
["2016-09-02",null,null,null,null,null,null,null,null,null,null,null,null,null,null,null,null,""]
["2016-09-03",null,null,null,null,null,null,null,null,null,null,null,null,null,null,null,null,""]
["2016-09-04",null,null,null,null,null,null,null,null,null,null,null,null,null,null,null,null,""]
["2016-09-05",null,null,null,null,null,null,null,null,null,null,null,null,null,null,null,null,""]
["2016-09-06",null,null,null,null,null,null,null,null,null,null,null,null,null,null,null,null,""]
["2016-09-07",null,null,null,null,null,null,null,null,null,null,null,null,null,null,null,null,""]
["2016-09-08",null,null,null,null,null,null,null,null,null,null,null,null,null,null,null,null,""]
["2016-09-09",null,null,null,null,null,null,null,null,null,null,null,null,null,null,null,null,""]
["2016-09-10",null,null,null,null,null,null,null,null,null,null,null,null,null,null,null,null,""]
["2016-09-11",null,null,null,null,null,null,null,null,null,null,null,null,null,null,null,null,""]
["2016-09-12",null,null,null,null,null,null,null,null,null,null,null,null,null,null,null,null,""]
["2016-09-13",null,null,null,null,null,null,null,null,null,null,null,null,null,null,null,null,{"$f":"IF(A257=TODAY(),MOD(ROW(),2),\"\")","v":""}]
["2016-09-14",null,null,null,null,null,null,null,null,null,null,null,null,null,null,null,null,""]
[{"$f":"A258+1","v":"2016-09-15"},null,null,null,null,null,null,null,null,null,null,null,null,null,null,null,null,""]
["2016-09-16",null,null,null,null,null,null,null,null,null,null,null,null,null,null,null,null,""]
["2016-09-17",null,null,null,null,null,null,null,null,null,null,null,null,null,null,null,null,""]
["2016-09-18",null,null,null,null,null,null,null,null,null,null,null,null,null,null,null,null,""]
["2016-09-19",null,null,null,null,null,null,null,null,null,null,null,null,null,null,null,null,""]
["2016-09-20",null,null,null,null,null,null,null,null,null,null,null,null,null,null,null,null,""]
["2016-09-21",null,null,null,null,null,null,null,null,null,null,null,null,null,null,null,null,""]
["2016-09-22",null,null,null,null,null,null,null,null,null,null,null,null,null,null,null,null,""]
["2016-09-23",null,null,null,null,null,null,null,null,null,null,null,null,null,null,null,null,""]
["2016-09-24",null,null,null,null,null,null,null,null,null,null,null,null,null,null,null,null,""]
["2016-09-25",null,null,null,null,null,null,null,null,null,null,null,null,null,null,null,null,""]
["2016-09-26",null,null,null,null,null,null,null,null,null,null,null,null,null,null,null,null,""]
["2016-09-27",null,null,null,null,null,null,null,null,null,null,null,null,null,null,null,null,""]
["2016-09-28",null,null,null,null,null,null,null,null,null,null,null,null,null,null,null,null,""]
["2016-09-29",null,null,null,null,null,null,null,null,null,null,null,null,null,null,null,null,""]
["2016-09-30",null,null,null,null,null,null,null,null,null,null,null,null,null,null,null,null,""]
["2016-10-01",null,null,null,null,null,null,null,null,null,null,null,null,null,null,null,null,""]
["2016-10-02",null,null,null,null,null,null,null,null,null,null,null,null,null,null,null,null,""]
["2016-10-03",null,null,null,null,null,null,null,null,null,null,null,null,null,null,null,null,""]
["2016-10-04",null,null,null,null,null,null,null,null,null,null,null,null,null,null,null,null,""]
["2016-10-05",null,null,null,null,null,null,null,null,null,null,null,null,null,null,null,null,""]
["2016-10-06",null,null,null,null,null,null,null,null,null,null,null,null,null,null,null,null,""]
["2016-10-07",null,null,null,null,null,null,null,null,null,null,null,null,null,null,null,null,""]
["2016-10-08",null,null,null,null,null,null,null,null,null,null,null,null,null,null,null,null,""]
["2016-10-09",null,null,null,null,null,null,null,null,null,null,null,null,null,null,null,null,""]
["2016-10-10",null,null,null,null,null,null,null,null,null,null,null,null,null,null,null,null,""]
["2016-10-11",null,null,null,null,null,null,null,null,null,null,null,null,null,null,null,null,""]
["2016-10-12",null,null,null,null,null,null,null,null,null,null,null,null,null,null,null,null,""]
["2016-10-13",null,null,null,null,null,null,null,null,null,null,null,null,null,null,null,null,""]
["2016-10-14",null,null,null,null,null,null,null,null,null,null,null,null,null,null,null,null,""]
["2016-10-15",null,null,null,null,null,null,null,null,null,null,null,null,null,null,null,null,""]
["2016-10-16",null,null,null,null,null,null,null,null,null,null,null,null,null,null,null,null,""]
["2016-10-17",null,null,null,null,null,null,null,null,null,null,null,null,null,null,null,null,""]
["2016-10-18",null,null,null,null,null,null,null,null,null,null,null,null,null,null,null,null,""]
["2016-10-19",null,null,null,null,null,null,null,null,null,null,null,null,null,null,null,null,""]
["2016-10-20",null,null,null,null,null,null,null,null,null,null,null,null,null,null,null,null,""]
["2016-10-21",null,null,null,null,null,null,null,null,null,null,null,null,null,null,null,null,""]
["2016-10-22",null,null,null,null,null,null,null,null,null,null,null,null,null,null,null,null,""]
["2016-10-23",null,null,null,null,null,null,null,null,null,null,null,null,null,null,null,null,""]
["2016-10-24",null,null,null,null,null,null,null,null,null,null,null,null,null,null,null,null,""]
["2016-10-25",null,null,null,null,null,null,null,null,null,null,null,null,null,null,null,null,""]
["2016-10-26",null,null,null,null,null,null,null,null,null,null,null,null,null,null,null,null,""]
["2016-10-27",null,null,null,null,null,null,null,null,null,null,null,null,null,null,null,null,""]
["2016-10-28",null,null,null,null,null,null,null,null,null,null,null,null,null,null,null,null,""]
["2016-10-29",null,null,null,null,null,null,null,null,null,null,null,null,null,null,null,null,""]
["2016-10-30",null,null,null,null,null,null,null,null,null,null,null,null,null,null,null,null,""]
["2016-10-31",null,null,null,null,null,null,null,null,null,null,null,null,null,null,null,null,""]
["2016-11-01",null,null,null,null,null,null,null,null,null,null,null,null,null,null,null,null,""]
["2016-11-02",null,null,null,null,null,null,null,null,null,null,null,null,null,null,null,null,""]
["2016-11-03",null,null,null,null,null,null,null,null,null,null,null,null,null,null,null,null,""]
["2016-11-04",null,null,null,null,null,null,null,null,null,null,null,null,null,null,null,null,""]
["2016-11-05",null,null,null,null,null,null,null,null,null,null,null,null,null,null,null,null,""]
["2016-11-06",null,null,null,null,null,null,null,null,null,null,null,null,null,null,null,null,""]
["2016-11-07",null,null,null,null,null,null,null,null,null,null,null,null,null,null,null,null,""]
["2016-11-08",null,null,null,null,null,null,null,null,null,null,null,null,null,null,null,null,""]
["2016-11-09",null,null,null,null,null,null,null,null,null,null,null,null,null,null,null,null,""]
["2016-11-10",null,null,null,null,null,null,null,null,null,null,null,null,null,null,null,null,""]
["2016-11-11",null,null,null,null,null,null,null,null,null,null,null,null,null,null,null,null,""]
["2016-11-12",null,null,null,null,null,null,null,null,null,null,null,null,null,null,null,null,""]
["2016-11-13",null,null,null,null,null,null,null,null,null,null,null,null,null,null,null,null,""]
["2016-11-14",null,null,null,null,null,null,null,null,null,null,null,null,null,null,null,null,""]
["2016-11-15",null,null,null,null,null,null,null,null,null,null,null,null,null,null,null,null,""]
["2016-11-16",null,null,null,null,null,null,null,null,null,null,null,null,null,null,null,null,{"$f":"IF(A321=TODAY(),MOD(ROW(),2),\"\")","v":""}]
["2016-11-17",null,null,null,null,null,null,null,null,null,null,null,null,null,null,null,null,""]
[{"$f":"A322+1","v":"2016-11-18"},null,null,null,null,null,null,null,null,null,null,null,null,null,null,null,null,""]
["2016-11-19",null,null,null,null,null,null,null,null,null,null,null,null,null,null,null,null,""]
["2016-11-20",null,null,null,null,null,null,null,null,null,null,null,null,null,null,null,null,""]
["2016-11-21",null,null,null,null,null,null,null,null,null,null,null,null,null,null,null,null,""]
["2016-11-22",null,null,null,null,null,null,null,null,null,null,null,null,null,null,null,null,""]
["2016-11-23",null,null,null,null,null,null,null,null,null,null,null,null,null,null,null,null,""]
["2016-11-24",null,null,null,null,null,null,null,null,null,null,null,null,null,null,null,null,""]
["2016-11-25",null,null,null,null,null,null,null,null,null,null,null,null,null,null,null,null,""]
["2016-11-26",null,null,null,null,null,null,null,null,null,null,null,null,null,null,null,null,""]
["2016-11-27",null,null,null,null,null,null,null,null,null,null,null,null,null,null,null,null,""]
["2016-11-28",null,null,null,null,null,null,null,null,null,null,null,null,null,null,null,null,""]
["2016-11-29",null,null,null,null,null,null,null,null,null,null,null,null,null,null,null,null,""]
["2016-11-30",null,null,null,null,null,null,null,null,null,null,null,null,null,null,null,null,""]
["2016-12-01",null,null,null,null,null,null,null,null,null,null,null,null,null,null,null,null,""]
["2016-12-02",null,null,null,null,null,null,null,null,null,null,null,null,null,null,null,null,""]
["2016-12-03",null,null,null,null,null,null,null,null,null,null,null,null,null,null,null,null,""]
["2016-12-04",null,null,null,null,null,null,null,null,null,null,null,null,null,null,null,null,""]
["2016-12-05",null,null,null,null,null,null,null,null,null,null,null,null,null,null,null,null,""]
["2016-12-06",null,null,null,null,null,null,null,null,null,null,null,null,null,null,null,null,""]
["2016-12-07",null,null,null,null,null,null,null,null,null,null,null,null,null,null,null,null,""]
["2016-12-08",null,null,null,null,null,null,null,null,null,null,null,null,null,null,null,null,""]
["2016-12-09",null,null,null,null,null,null,null,null,null,null,null,null,null,null,null,null,""]
["2016-12-10",null,null,null,null,null,null,null,null,null,null,null,null,null,null,null,null,""]
["2016-12-11",null,null,null,null,null,null,null,null,null,null,null,null,null,null,null,null,""]
["2016-12-12",null,null,null,null,null,null,null,null,null,null,null,null,null,null,null,null,""]
["2016-12-13",null,null,null,null,null,null,null,null,null,null,null,null,null,null,null,null,""]
["2016-12-14",null,null,null,null,null,null,null,null,null,null,null,null,null,null,null,null,""]
["2016-12-15",null,null,null,null,null,null,null,null,null,null,null,null,null,null,null,null,""]
["2016-12-16",null,null,null,null,null,null,null,null,null,null,null,null,null,null,null,null,""]
["2016-12-17",null,null,null,null,null,null,null,null,null,null,null,null,null,null,null,null,""]
["2016-12-18",null,null,null,null,null,null,null,null,null,null,null,null,null,null,null,null,""]
["2016-12-19",null,null,null,null,null,null,null,null,null,null,null,null,null,null,null,null,""]
["2016-12-20",null,null,null,null,null,null,null,null,null,null,null,null,null,null,null,null,""]
["2016-12-21",null,null,null,null,null,null,null,null,null,null,null,null,null,null,null,null,""]
["2016-12-22",null,null,null,null,null,null,null,null,null,null,null,null,null,null,null,null,""]
["2016-12-23",null,null,null,null,null,null,null,null,null,null,null,null,null,null,null,null,""]
["2016-12-24",null,null,null,null,null,null,null,null,null,null,null,null,null,null,null,null,""]
["2016-12-25",null,null,null,null,null,null,null,null,null,null,null,null,null,null,null,null,""]
["2016-12-26",null,null,null,null,null,null,null,null,null,null,null,null,null,null,null,null,""]
["2016-12-27",null,null,null,null,null,null,null,null,null,null,null,null,null,null,null,null,""]
["2016-12-28",null,null,null,null,null,null,null,null,null,null,null,null,null,null,null,null,""]
["2016-12-29",null,null,null,null,null,null,null,null,null,null,null,null,null,null,null,null,""]
["2016-12-30",null,null,null,null,null,null,null,null,null,null,null,null,null,null,null,null,""]
["2016-12-31",null,null,null,null,null,null,null,null,null,null,null,null,null,null,null,null,""]
["2017-01-01"]
["2017-01-02"]
["2017-01-03"]
["2017-01-04"]
["2017-01-05"]
["2017-01-06"]
["2017-01-07"]
["2017-01-08"]
["2017-01-09"]
["2017-01-10"]
["2017-01-11"]
["2017-01-12"]
["2017-01-13"]
["2017-01-14"]
["2017-01-15"]
["2017-01-16"]
["2017-01-17"]
["2017-01-18"]
["2017-01-19"]
["2017-01-20"]
[{"$f":"A386+1","v":"2017-01-21"}]
["2017-01-22"]
["2017-01-23"]
["2017-01-24"]
["2017-01-25"]
["2017-01-26"]
["2017-01-27"]
["2017-01-28"]
["2017-01-29"]
["2017-01-30"]
["2017-01-31"]
["2017-02-01"]
["2017-02-02"]
["2017-02-03"]
["2017-02-04"]
["2017-02-05"]
["2017-02-06"]
["2017-02-07"]
["2017-02-08"]
["2017-02-09"]
["2017-02-10"]
["2017-02-11"]
["2017-02-12"]
["2017-02-13"]
["2017-02-14"]
["2017-02-15"]
["2017-02-16"]
["2017-02-17"]
["2017-02-18"]
["2017-02-19"]
["2017-02-20"]
["2017-02-21"]
["2017-02-22"]
["2017-02-23"]
["2017-02-24"]
["2017-02-25"]
["2017-02-26"]
["2017-02-27"]
["2017-02-28"]
["2017-03-01"]
["2017-03-02"]
["2017-03-03"]
["2017-03-04"]
["2017-03-05"]
["2017-03-06"]
["2017-03-07"]
["2017-03-08"]
["2017-03-09"]
["2017-03-10"]
["2017-03-11"]
["2017-03-12"]
["2017-03-13"]
["2017-03-14"]
["2017-03-15"]
["2017-03-16"]
["2017-03-17"]
["2017-03-18"]
["2017-03-19"]
["2017-03-20"]
["2017-03-21"]
["2017-03-22"]
["2017-03-23"]
["2017-03-24"]
["2017-03-25"]
[{"$f":"A450+1","v":"2017-03-26"}]
["2017-03-27"]
["2017-03-28"]
["2017-03-29"]
["2017-03-30"]
["2017-03-31"]
["2017-04-01"]
["2017-04-02"]
["2017-04-03"]
["2017-04-04"]
["2017-04-05"]
["2017-04-06"]
["2017-04-07"]
["2017-04-08"]
["2017-04-09"]
["2017-04-10"]
["2017-04-11"]
["2017-04-12"]
["2017-04-13"]
["2017-04-14"]
["2017-04-15"]
["2017-04-16"]
["2017-04-17"]
["2017-04-18"]
["2017-04-19"]
["2017-04-20"]
["2017-04-21"]
["2017-04-22"]
["2017-04-23"]
["2017-04-24"]
["2017-04-25"]
["2017-04-26"]
["2017-04-27"]
["2017-04-28"]
["2017-04-29"]
["2017-04-30"]
["2017-05-01"]
["2017-05-02"]
["2017-05-03"]
["2017-05-04"]
["2017-05-05"]
["2017-05-06"]
["2017-05-07"]
["2017-05-08"]
["2017-05-09"]
["2017-05-10"]
["2017-05-11"]
["2017-05-12"]
["2017-05-13"]
["2017-05-14"]
["2017-05-15"]
["2017-05-16"]
["2017-05-17"]
["2017-05-18"]
["2017-05-19"]
["2017-05-20"]
["2017-05-21"]
["2017-05-22"]
["2017-05-23"]
["2017-05-24"]
["2017-05-25"]
["2017-05-26"]
["2017-05-27"]
["2017-05-28"]
[{"$f":"A514+1","v":"2017-05-29"}]
["2017-05-30"]
["2017-05-31"]
["2017-06-01"]
["2017-06-02"]
["2017-06-03"]
["2017-06-04"]
["2017-06-05"]
["2017-06-06"]
["2017-06-07"]
["2017-06-08"]
["2017-06-09"]
["2017-06-10"]
["2017-06-11"]
["2017-06-12"]
["2017-06-13"]
["2017-06-14"]
["2017-06-15"]
["2017-06-16"]
["2017-06-17"]
["2017-06-18"]
["2017-06-19"]
["2017-06-20"]
["2017-06-21"]
["2017-06-22"]
["2017-06-23"]
["2017-06-24"]
["2017-06-25"]
["2017-06-26"]
["2017-06-27"]
["2017-06-28"]
["2017-06-29"]
["2017-06-30"]
["2017-07-01"]
["2017-07-02"]
["2017-07-03"]
["2017-07-04"]
["2017-07-05"]
["2017-07-06"]
["2017-07-07"]
["2017-07-08"]
["2017-07-09"]
["2017-07-10"]
["2017-07-11"]
["2017-07-12"]
["2017-07-13"]
["2017-07-14"]
["2017-07-15"]
["2017-07-16"]
["2017-07-17"]
["2017-07-18"]
["2017-07-19"]
["2017-07-20"]
["2017-07-21"]
["2017-07-22"]
["2017-07-23"]
["2017-07-24"]
["2017-07-25"]
["2017-07-26"]
["2017-07-27"]
["2017-07-28"]
["2017-07-29"]
["2017-07-30"]
["2017-07-31"]
[{"$f":"A578+1","v":"2017-08-01"}]
["2017-08-02"]
["2017-08-03"]
["2017-08-04"]
["2017-08-05"]
["2017-08-06"]
["2017-08-07"]
["2017-08-08"]
["2017-08-09"]
["2017-08-10"]
["2017-08-11"]
["2017-08-12"]
["2017-08-13"]
["2017-08-14"]
["2017-08-15"]
["2017-08-16"]
["2017-08-17"]
["2017-08-18"]
["2017-08-19"]
["2017-08-20"]
["2017-08-21"]
["2017-08-22"]
["2017-08-23"]
["2017-08-24"]
["2017-08-25"]
["2017-08-26"]
["2017-08-27"]
["2017-08-28"]
["2017-08-29"]
["2017-08-30"]
["2017-08-31"]
["2017-09-01"]
["2017-09-02"]
["2017-09-03"]
["2017-09-04"]
["2017-09-05"]
["2017-09-06"]
["2017-09-07"]
["2017-09-08"]
["2017-09-09"]
["2017-09-10"]
["2017-09-11"]
["2017-09-12"]
["2017-09-13"]
["2017-09-14"]
["2017-09-15"]
["2017-09-16"]
["2017-09-17"]
["2017-09-18"]
["2017-09-19"]
["2017-09-20"]
["2017-09-21"]
["2017-09-22"]
["2017-09-23"]
["2017-09-24"]
["2017-09-25"]
["2017-09-26"]
["2017-09-27"]
["2017-09-28"]
["2017-09-29"]
["2017-09-30"]
["2017-10-01"]
["2017-10-02"]
["2017-10-03"]
[{"$f":"A642+1","v":"2017-10-04"}]
["2017-10-05"]
["2017-10-06"]
["2017-10-07"]
["2017-10-08"]
["2017-10-09"]
["2017-10-10"]
["2017-10-11"]
["2017-10-12"]
["2017-10-13"]
["2017-10-14"]
["2017-10-15"]
["2017-10-16"]
["2017-10-17"]
["2017-10-18"]
["2017-10-19"]
["2017-10-20"]
["2017-10-21"]
["2017-10-22"]
["2017-10-23"]
["2017-10-24"]
["2017-10-25"]
["2017-10-26"]
["2017-10-27"]
["2017-10-28"]
["2017-10-29"]
["2017-10-30"]
["2017-10-31"]
["2017-11-01"]
["2017-11-02"]
["2017-11-03"]
["2017-11-04"]
["2017-11-05"]
["2017-11-06"]
["2017-11-07"]
["2017-11-08"]
["2017-11-09"]
["2017-11-10"]
["2017-11-11"]
["2017-11-12"]
["2017-11-13"]
["2017-11-14"]
["2017-11-15"]
["2017-11-16"]
["2017-11-17"]
["2017-11-18"]
["2017-11-19"]
["2017-11-20"]
["2017-11-21"]
["2017-11-22"]
["2017-11-23"]
["2017-11-24"]
["2017-11-25"]
["2017-11-26"]
["2017-11-27"]
["2017-11-28"]
["2017-11-29"]
["2017-11-30"]
["2017-12-01"]
["2017-12-02"]
["2017-12-03"]
["2017-12-04"]
["2017-12-05"]
["2017-12-06"]
[{"$f":"A706+1","v":"2017-12-07"}]
["2017-12-08"]
["2017-12-09"]
["2017-12-10"]
["2017-12-11"]
["2017-12-12"]
["2017-12-13"]
["2017-12-14"]
["2017-12-15"]
["2017-12-16"]
["2017-12-17"]
["2017-12-18"]
["2017-12-19"]
["2017-12-20"]
["2017-12-21"]
["2017-12-22"]
["2017-12-23"]
["2017-12-24"]
["2017-12-25"]
["2017-12-26"]
["2017-12-27"]
["2017-12-28"]
["2017-12-29"]
["2017-12-30"]
["2017-12-31"]
["2018-01-01"]
["2018-01-02"]
["2018-01-03"]
["2018-01-04"]
["2018-01-05"]
["2018-01-06"]
["2018-01-07"]
["2018-01-08"]
["2018-01-09"]
["2018-01-10"]
["2018-01-11"]
["2018-01-12"]
["2018-01-13"]
["2018-01-14"]
["2018-01-15"]
["2018-01-16"]
["2018-01-17"]
["2018-01-18"]
["2018-01-19"]
["2018-01-20"]
["2018-01-21"]
["2018-01-22"]
["2018-01-23"]
["2018-01-24"]
["2018-01-25"]
["2018-01-26"]
["2018-01-27"]
["2018-01-28"]
["2018-01-29"]
["2018-01-30"]
["2018-01-31"]
["2018-02-01"]
["2018-02-02"]
["2018-02-03"]

{"sheet":"Blad3","index":1,"n_rows":18,"n_cols":8,"rows_kept":18,"cut":false,"hidden":false,"merged":[[0,1,0,5]]}
[null,"zet hier het email adres van de apotheek"]
[]
["Kolom A wordt autom. Ingevuld.",null,null,null,null,"Gaarne onderstaande medicijnen:"]
[]
[{"$f":"IFERROR(VLOOKUP(ROW()-4,tal,1,0),\"\")","v":""},{"$f":"IF(Blad2!C8=\"\",\"\",Blad2!C8)","v":"Fenprocoumon 3MG"},{"$f":"IF(Blad2!E8=\"\",\"\",Blad2!E8)","v":""},null,null,{"$f":"IFERROR(VLOOKUP(SMALL(volgnummer,ROW()-4),recept,2,0),\"\")","v":""},null,{"$f":"IFERROR(VLOOKUP(SMALL(volgnummer,ROW()-4),recept,3,0),\"\")","v":""}]
["",{"$f":"IF(Blad2!C9=\"\",\"\",Blad2!C9)","v":"Modalim 100 mg  (op de dag als deze cel groen is)"},{"$f":"IF(Blad2!E9=\"\",\"\",Blad2!E9)","v":""},null,null,{"$f":"IFERROR(VLOOKUP(SMALL(volgnummer,ROW()-4),recept,2,0),\"\")","v":""},null,""]
["",{"$f":"IF(Blad2!C10=\"\",\"\",Blad2!C10)","v":"Nebivolol 5MG "},{"$f":"IF(Blad2!E10=\"\",\"\",Blad2!E10)","v":""},null,null,"",null,""]
["",{"$f":"IF(Blad2!C11=\"\",\"\",Blad2!C11)","v":"Symbicort 400/12"},{"$f":"IF(Blad2!E11=\"\",\"\",Blad2!E11)","v":""},null,null,"",null,""]
["",{"$f":"IF(Blad2!C12=\"\",\"\",Blad2!C12)","v":""},{"$f":"IF(Blad2!E12=\"\",\"\",Blad2!E12)","v":""},null,null,"",null,""]
["",{"$f":"IF(Blad2!C13=\"\",\"\",Blad2!C13)","v":""},{"$f":"IF(Blad2!E13=\"\",\"\",Blad2!E13)","v":""},null,null,"",null,""]
["",{"$f":"IF(Blad2!C14=\"\",\"\",Blad2!C14)","v":""},{"$f":"IF(Blad2!E14=\"\",\"\",Blad2!E14)","v":""},null,null,"",null,""]
["",{"$f":"IF(Blad2!C15=\"\",\"\",Blad2!C15)","v":""},{"$f":"IF(Blad2!E15=\"\",\"\",Blad2!E15)","v":""}]
["",{"$f":"IF(Blad2!C16=\"\",\"\",Blad2!C16)","v":""},{"$f":"IF(Blad2!E16=\"\",\"\",Blad2!E16)","v":""}]
["",{"$f":"IF(Blad2!C17=\"\",\"\",Blad2!C17)","v":""},{"$f":"IF(Blad2!E17=\"\",\"\",Blad2!E17)","v":""},null,null,"Met vriendelijke groeten,"]
["",{"$f":"IF(Blad2!C18=\"\",\"\",Blad2!C18)","v":""},{"$f":"IF(Blad2!E18=\"\",\"\",Blad2!E18)","v":""},null,null,"naam"]
["",{"$f":"IF(Blad2!C19=\"\",\"\",Blad2!C19)","v":""},{"$f":"IF(Blad2!E19=\"\",\"\",Blad2!E19)","v":""},null,null,"adres"]
[null,null,null,null,null,"postcode en plaats"]
[null,null,null,null,null,"id nummer"]